bitfinex/quotes_ETHUSD_20240614
["timestamp","ask_amount","ask_price","bid_price","bid_amount"]
[1718408174802,0.13040941,3486.2,3486.0,2.8686]
[1718408174968,2.86839,3486.3,3486.0,2.8686]
[1718408175169,0.13040941,3486.2,3486.0,2.8686]
[1718408175368,2.86839,3486.3,3485.8,2.86873]
[1718408175571,0.13040941,3486.2,3485.8,2.86873]
[1718408175876,3.47933168,3486.3,3485.8,2.86873]
[1718408176067,0.13033185,3486.1,3485.8,2.86873]
[1718408176271,3.47933168,3486.3,3485.8,2.86873]
[1718408176467,0.13033185,3486.0,3485.8,2.86873]
[1718408176786,0.13033185,3485.9,3485.8,2.86873]
[1718408177290,2.86845,3486.2,3485.9,2.86869]
[1718408179153,2.8683,3486.4,3485.9,2.86869]
[1718408179655,2.86838,3486.3,3485.9,2.86869]
[1718408180857,2.86838,3486.3,3486.0,2.86861]
[1718408182291,0.13011459,3486.2,3486.0,2.86861]
[1718408182718,2.86838,3486.3,3486.0,2.86861]
[1718408183161,0.37282684,3486.5,3486.0,2.86861]
[1718408183162,0.13011459,3486.2,3486.0,2.86861]
[1718408183362,2.86832,3486.4,3486.0,2.86861]
[1718408183562,0.13011459,3486.3,3486.0,2.86861]
[1718408185375,2.99849459,3486.3,3486.0,2.86861]
[1718408188700,2.99849459,3486.3,3485.9,2.86869]
[1718408191011,2.86846,3486.2,3485.9,2.86869]
[1718408191482,0.13002922,3486.1,3485.9,2.86869]
[1718408192082,2.99856922,3486.1,3485.7,2.86878]
[1718408192272,2.8687,3485.9,3485.6,2.86893]
[1718408192703,0.13000595,3485.8,3485.6,2.86893]
[1718408194885,0.13000595,3485.8,3485.4,2.8691]
[1718408195917,1.12128516,3485.8,3485.2,2.8692]
[1718408196300,2.86909,3485.5,3485.1,2.86935]
[1718408196696,0.12988565,3485.4,3485.1,2.86935]
[1718408197001,2.99900565,3485.4,3485.1,2.86935]
[1718408199690,2.86919,3485.3,3484.9,2.86952]
[1718408199888,2.86919,3485.3,3485.0,0.671]
[1718408200325,0.12988565,3485.2,3485.0,0.671]
[1718408200522,0.12988565,3485.2,3484.8,2.86958]
[1718408200523,2.86935,3485.1,3484.8,2.86958]
[1718408200823,0.1296722,3485.0,3484.8,2.86958]
[1718408202100,0.1296722,3485.0,3484.9,0.671]
[1718408203221,0.1296722,3485.0,3484.9,3.54052]
[1718408203831,0.1295247,3485.0,3484.9,3.54052]
[1718408204127,2.86929,3485.2,3484.9,3.54052]
[1718408204330,0.12954024,3485.0,3484.9,3.54052]
[1718408204512,2.86929,3485.2,3484.9,3.54052]
[1718408204697,0.12954024,3485.0,3484.9,3.54052]
[1718408204896,2.86929,3485.2,3484.9,3.54052]
[1718408205098,0.12954024,3485.0,3484.9,3.54052]
[1718408205298,2.86929,3485.2,3484.9,3.54052]
[1718408205506,0.12954024,3485.0,3484.9,3.54052]
[1718408205830,2.86919,3485.3,3485.0,2.86943]
[1718408210997,2.86904,3485.5,3485.0,2.86943]
[1718408211197,2.86911,3485.4,3485.0,2.86943]
[1718408212205,0.12940052,3485.3,3485.1,2.86935]
[1718408212852,0.12940052,3485.3,3485.2,9.27881]
[1718408213157,5.20187,3486.2,3485.7,2.86884]
[1718408213300,0.85768629,3486.1,3485.7,2.86884]
[1718408213505,3.85562456,3486.1,3485.7,2.86884]
[1718408215118,3.85562456,3486.1,3485.6,0.671]
[1718408215119,2.86863,3486.0,3485.6,0.671]
[1718408215329,2.86863,3486.0,3485.4,3.54007]
[1718408215638,0.12940827,3485.9,3485.6,2.8689]
[1718408215846,0.89166524,3485.9,3485.6,2.8689]
[1718408218308,3.76036524,3485.9,3485.6,2.8689]
[1718408219849,0.12940827,3485.9,3485.6,5.1931]
[1718408220050,2.8686,3486.1,3485.6,5.8641]
[1718408220287,0.12955963,3485.8,3485.6,5.8641]
[1718408220550,2.8686,3486.1,3485.7,2.86878]
[1718408221417,2.8686,3486.1,3485.8,2.86878]
[1718408221613,2.8686,3486.1,3485.7,2.86886]
[1718408221821,3.50960975,3486.1,3485.7,2.86886]
[1718408222318,2.8686,3486.1,3485.7,2.86886]
[1718408223455,2.86862,3486.0,3485.6,2.86894]
[1718408223672,2.86896,3485.6,3485.1,2.86927]
[1718408224017,2.86904,3485.5,3485.1,2.86927]
[1718408224232,2.8692,3485.3,3485.0,2.86943]
[1718408224454,2.86927,3485.2,3484.9,2.86951]
[1718408225855,2.86944,3485.0,3484.6,2.86976]
[1718408226021,4.04588232,3485.3,3484.6,2.86976]
[1718408226221,2.86952,3485.0,3484.6,2.86976]
[1718408227332,0.12971101,3484.9,3484.6,2.86976]
[1718408227732,0.12971101,3484.9,3484.7,2.86968]
[1718408227948,1.50264504,3485.4,3485.0,2.86943]
[1718408228146,2.86895,3485.6,3485.2,2.86925]
[1718408229319,2.86902,3485.5,3485.2,2.86925]
[1718408229518,2.86902,3485.5,3485.3,2.3242]
[1718408229853,2.86878,3485.8,3485.4,2.86909]
[1718408230157,3.20641164,3485.8,3485.4,2.86909]
[1718408230545,2.86886,3485.7,3485.2,3.54025]
[1718408230722,2.86909,3485.5,3485.1,2.86929]
[1718408230924,2.86909,3485.5,3485.1,3.54029]
[1718408233674,2.86926,3485.3,3484.8,2.8696]
[1718408235080,2.86935,3485.1,3484.8,2.8696]
[1718408237384,2.86935,3485.1,3484.8,3.5406]
[1718408240780,2.86935,3485.1,3484.7,2.3131]
[1718408240781,2.86935,3485.1,3484.6,2.86976]
[1718408240984,2.86952,3484.9,3484.6,2.86976]
[1718408242285,0.1294005,3484.8,3484.6,2.86976]
[1718408243968,0.1294005,3484.8,3484.5,2.86984]
[1718408245458,0.1294005,3484.8,3484.3,2.87001]
[1718408245660,0.1294005,3484.8,3484.3,3.54101]
[1718408246965,2.86978,3484.6,3484.3,3.54101]
[1718408247565,2.99924003,3484.5,3484.3,0.671]
[1718408247801,2.99924003,3484.5,3484.2,2.87009]
[1718408248003,2.86994,3484.4,3484.1,5.18327]
[1718408248225,2.87001,3484.3,3484.1,2.87017]
[1718408248532,2.87001,3484.3,3483.9,3.54132]
[1718408248533,2.99929405,3484.3,3483.9,3.54132]
[1718408248689,2.99929405,3484.3,3484.0,2.87026]
[1718408249065,2.87015,3484.2,3483.8,5.1835]
[1718408249300,2.87015,3484.2,3483.9,0.671]
[1718408249507,2.87022,3484.1,3483.9,0.671]
[1718408249808,2.99950405,3484.1,3483.9,0.671]
[1718408251290,2.99950405,3484.1,3483.8,2.8704]
[1718408252402,2.99950405,3484.1,3484.0,8.20742]
[1718408252403,0.12928405,3484.1,3484.0,8.20742]
[1718408252710,2.8696,3484.8,3484.3,2.86997]
[1718408253010,2.8696,3484.8,3484.4,3.54092]
[1718408253206,2.86974,3484.7,3484.4,0.671]
[1718408253973,2.86974,3484.7,3484.3,2.87001]
[1718408255477,2.86974,3484.7,3484.4,2.86993]
[1718408256015,2.86953,3484.9,3484.4,2.86993]
[1718408256419,2.86953,3484.9,3484.4,3.54093]
[1718408256621,2.86961,3484.8,3484.4,3.54093]
[1718408257081,0.12903556,3484.7,3484.4,3.54093]
[1718408257280,2.86961,3484.8,3484.4,3.54093]
[1718408257481,0.12903556,3484.7,3484.4,3.54093]
[1718408257711,8.68810352,3485.1,3484.4,1.599104]
[1718408257980,0.12903556,3485.0,3484.8,0.671]
[1718408258188,0.12903556,3485.0,3484.9,2.86944]
[1718408258392,2.86912,3485.4,3484.9,2.86944]
[1718408258594,0.12904721,3485.0,3484.9,2.86944]
[1718408258790,2.86919,3485.3,3484.9,2.86944]
[1718408259013,0.12913264,3485.0,3484.9,2.86944]
[1718408259216,2.86919,3485.3,3484.9,2.86944]
[1718408259393,0.12913264,3485.0,3484.9,2.86944]
[1718408259594,2.86919,3485.3,3484.9,2.86544]
[1718408259790,0.12913264,3485.0,3484.9,2.86544]
[1718408259999,2.86919,3485.3,3484.9,2.86544]
[1718408260199,0.12913264,3485.0,3484.9,2.86544]
[1718408260394,2.86919,3485.3,3484.9,2.86544]
[1718408260614,0.12913264,3485.0,3484.9,2.86544]
[1718408261628,2.86919,3485.3,3484.9,2.86544]
[1718408261796,0.12913264,3485.0,3484.9,2.86544]
[1718408261997,2.86919,3485.3,3484.9,2.86544]
[1718408262197,0.12916758,3485.0,3484.9,2.86544]
[1718408262403,2.86919,3485.3,3484.9,2.86544]
[1718408262612,0.12916758,3485.0,3484.9,2.86544]
[1718408262788,2.86919,3485.3,3484.9,2.86544]
[1718408262989,0.12916758,3485.0,3484.9,2.86544]
[1718408263189,2.86919,3485.3,3484.9,2.86544]
[1718408263520,0.12916758,3485.0,3484.9,5.73496]
[1718408263722,5.74841649,3485.7,3485.2,2.86921]
[1718408264090,1.37799467,3485.6,3485.2,2.86921]
[1718408264294,4.24694467,3485.6,3485.2,2.86921]
[1718408264496,5.48604952,3485.6,3485.2,2.86921]
[1718408264701,4.60410517,3485.6,3485.2,2.86921]
[1718408265021,4.10805485,3485.6,3485.2,2.86921]
[1718408265498,5.60953667,3485.6,3485.2,2.86921]
[1718408265691,4.10805485,3485.6,3485.2,2.86921]
[1718408267223,1.13609233,3485.5,3485.2,2.86921]
[1718408267423,1.13609233,3485.5,3485.0,5.73872]
[1718408267733,6.88453697,3485.5,3485.0,2.86935]
[1718408267888,7.38058918,3485.5,3485.0,2.86935]
[1718408268093,2.86912,3485.4,3485.0,2.86935]
[1718408268321,4.37060182,3485.4,3485.0,2.86935]
[1718408268499,5.46389618,3485.4,3485.0,2.86935]
[1718408269353,5.46417612,3485.4,3485.0,2.86935]
[1718408269922,2.86921,3485.3,3484.9,2.86951]
[1718408270134,2.86939,3485.1,3484.6,5.33659]
[1718408270346,2.86939,3485.1,3484.5,2.86984]
[1718408270534,2.8696,3484.8,3484.5,2.86984]
[1718408272108,0.12929571,3484.7,3484.5,2.86984]
[1718408272308,2.8696,3484.8,3484.5,2.86984]
[1718408272550,0.12929571,3484.7,3484.5,2.86984]
[1718408272867,2.8696,3484.8,3484.5,2.86984]
[1718408273037,0.12929571,3484.6,3484.5,2.86984]
[1718408273227,2.8696,3484.8,3484.5,2.86984]
[1718408273428,0.12929571,3484.6,3484.5,2.86984]
[1718408273626,2.8696,3484.8,3484.5,2.86984]
[1718408273826,0.12929571,3484.6,3484.5,2.86984]
[1718408274031,2.8696,3484.8,3484.5,2.86984]
[1718408274651,0.12929571,3484.7,3484.5,2.86984]
[1718408275147,0.12929571,3484.6,3484.5,2.86984]
[1718408275369,2.8696,3484.8,3484.5,2.86984]
[1718408275526,0.12929571,3484.7,3484.5,2.86984]
[1718408275720,2.8696,3484.8,3484.5,2.86984]
[1718408275920,0.12929571,3484.7,3484.5,2.86984]
[1718408276133,2.8696,3484.8,3484.5,2.86984]
[1718408276454,0.12929571,3484.7,3484.5,3.54084]
[1718408276618,0.12929571,3484.7,3484.6,2.86976]
[1718408277259,2.86944,3485.0,3484.6,2.86976]
[1718408277752,0.12929571,3484.9,3484.6,2.86976]
[1718408278256,0.12929571,3484.9,3484.7,2.86968]
[1718408281681,3.92342863,3484.9,3484.5,2.86984]
[1718408281961,3.77597766,3484.8,3484.3,2.86996]
[1718408282141,1.37807766,3484.6,3484.3,2.86996]
[1718408282341,1.87419595,3484.6,3484.3,2.86996]
[1718408282548,4.37293292,3484.5,3484.1,2.8701]
[1718408282734,4.86905121,3484.5,3484.1,2.8701]
[1718408282934,1.37807766,3484.4,3483.7,9.7326]
[1718408283130,4.24808766,3484.3,3483.7,5.29309]
[1718408283440,0.12498973,3484.2,3483.9,2.87033]
[1718408283644,0.12498973,3484.2,3483.8,0.671]
[1718408283835,1.37807766,3484.3,3483.8,0.671]
[1718408284030,0.12498973,3484.1,3483.9,2.87028]
[1718408284254,4.24814766,3484.3,3483.9,2.87028]
[1718408284447,0.12498973,3484.0,3483.9,2.87028]
[1718408284647,2.8701,3484.2,3483.9,2.87028]
[1718408284881,0.12498973,3484.0,3483.9,2.87028]
[1718408285085,2.8701,3484.2,3483.9,2.87028]
[1718408285670,0.12498973,3484.1,3483.9,2.87028]
[1718408286586,2.87003,3484.3,3483.9,2.87028]
[1718408286888,0.12498973,3484.2,3483.9,2.87028]
[1718408287251,2.87003,3484.3,3483.9,2.87028]
[1718408287916,0.12498973,3484.2,3483.9,2.87028]
[1718408288172,2.87003,3484.3,3483.9,2.87028]
[1718408288337,0.12498973,3484.2,3483.9,5.74054]
[1718408288683,2.87003,3484.3,3483.9,2.87026]
[1718408288886,0.12498973,3484.1,3483.9,2.87026]
[1718408289052,2.87003,3484.3,3483.9,2.87026]
[1718408289249,0.12498973,3484.0,3483.9,2.87026]
[1718408289461,2.8701,3484.2,3483.9,2.87026]
[1718408289641,0.12498973,3484.0,3483.9,2.87026]
[1718408289969,0.12471404,3484.0,3483.9,2.87026]
[1718408290176,2.8701,3484.2,3483.9,2.87026]
[1718408290376,0.12468685,3484.1,3483.9,2.87026]
[1718408290779,2.87027,3484.0,3483.7,2.87043]
[1718408290944,2.87027,3484.0,3483.5,2.87063]
[1718408290945,2.87035,3483.9,3483.5,2.87063]
[1718408291145,0.12465189,3483.8,3483.6,0.671]
[1718408291339,2.87026,3484.1,3483.6,0.671]
[1718408291580,2.99458406,3484.0,3483.5,2.87063]
[1718408291784,2.99458406,3484.0,3483.5,3.54163]
[1718408292974,2.87044,3483.8,3483.5,3.54163]
[1718408293174,2.87027,3484.0,3483.5,3.54163]
[1718408293357,0.12431406,3483.9,3483.5,2.87063]
[1718408294369,1.02837097,3483.9,3483.5,2.87063]
[1718408294985,3.89872097,3483.9,3483.5,2.87063]
[1718408296892,0.12431406,3483.9,3483.6,2.87058]
[1718408297079,0.12431406,3483.9,3483.8,9.28226]
[1718408297282,1.37840816,3484.6,3483.8,3.54142]
[1718408297472,0.12406546,3483.9,3483.8,5.74084]
[1718408297668,2.86987,3484.5,3484.1,2.87016]
[1718408297871,0.91173348,3484.4,3484.1,2.87016]
[1718408300281,2.29014164,3484.4,3484.1,2.87016]
[1718408300797,0.91173348,3484.4,3484.1,2.87016]
[1718408300994,2.29014164,3484.4,3484.1,2.87016]
[1718408301965,5.16007164,3484.4,3484.0,2.87026]
[1718408302165,0.12417422,3484.3,3484.0,2.87026]
[1718408304899,2.87018,3484.1,3483.7,5.17058]
[1718408305099,2.87018,3484.1,3483.8,0.671]
[1718408305600,0.12412373,3484.0,3483.8,0.671]
[1718408305966,0.12412373,3484.0,3483.5,2.87063]
[1718408305967,2.87034,3483.9,3483.5,2.87063]
[1718408306367,0.12412373,3483.8,3483.5,3.54163]
[1718408306990,2.99455373,3483.8,3483.5,3.54163]
[1718408310318,2.87053,3483.7,3483.5,0.671]
[1718408310707,0.12399549,3483.6,3483.5,0.671]
[1718408311425,2.87043,3483.8,3483.5,0.671]
[1718408311602,0.12399549,3483.6,3483.5,0.671]
[1718408311804,2.87043,3483.8,3483.4,2.87072]
[1718408311805,2.87054,3483.7,3483.4,2.87072]
[1718408312011,0.12400326,3483.6,3483.4,3.54172]
[1718408312208,0.12400326,3483.6,3483.2,2.87085]
[1718408312611,1.50241142,3483.6,3483.2,2.87085]
[1718408312790,1.99864096,3483.6,3483.2,2.87085]
[1718408313600,2.87067,3483.5,3483.2,2.87085]
[1718408313806,4.7452277,3483.6,3483.1,3.54198]
[1718408314008,2.87077,3483.4,3483.1,3.54198]
[1718408314201,2.87077,3483.4,3483.1,2.87098]
[1718408314407,2.99484326,3483.3,3483.0,3.54208]
[1718408314603,2.87092,3483.2,3482.9,2.3441]
[1718408314803,2.87092,3483.2,3482.4,2.87156]
[1718408314804,2.99500163,3483.1,3482.5,2.3441]
[1718408315129,2.99500163,3483.1,3482.8,0.671]
[1718408316431,0.84838481,3483.1,3482.6,0.671]
[1718408316725,0.84838481,3483.1,3482.5,2.87149]
[1718408316726,5.09742497,3483.1,3482.5,2.87149]
[1718408317023,5.09742497,3483.1,3482.6,0.671]
[1718408317204,3.71941481,3483.1,3482.6,0.671]
[1718408317602,2.87125,3482.9,3482.6,3.54241]
[1718408317957,4.24868016,3483.5,3483.1,2.87095]
[1718408318424,2.87067,3483.5,3483.1,2.87095]
[1718408318844,4.24868016,3483.5,3483.1,2.87095]
[1718408319205,4.24860016,3483.6,3483.2,2.87091]
[1718408319410,2.87059,3483.6,3483.4,0.671]
[1718408319933,2.87067,3483.5,3483.0,2.87105]
[1718408320230,4.24868016,3483.5,3483.0,3.54205]
[1718408320442,2.871,3483.1,3482.8,2.87118]
[1718408320619,2.871,3483.1,3482.6,5.21548]
[1718408320620,2.87117,3482.9,3482.6,2.87138]
[1718408320997,2.87109,3483.0,3482.7,3.54233]
[1718408321396,4.745224,3483.4,3482.9,3.0151]
[1718408321622,1.37801016,3483.4,3483.1,3.542]
[1718408321828,4.24876016,3483.5,3483.1,3.542]
[1718408324955,2.87075,3483.5,3483.1,3.542]
[1718408325158,4.24876016,3483.5,3483.1,3.542]
[1718408325486,1.37801016,3483.6,3483.2,2.8709]
[1718408325643,2.52909227,3483.6,3483.2,2.8709]
[1718408326950,5.39989044,3483.6,3483.2,2.8709]
[1718408328118,2.87068,3483.5,3483.1,3.542]
[1718408328513,2.87068,3483.5,3483.1,2.871]
[1718408328714,2.87076,3483.4,3483.1,2.871]
[1718408328921,3.89760848,3483.4,3483.1,2.871]
[1718408329147,3.89760848,3483.4,3483.0,2.87108]
[1718408329517,5.27581681,3483.4,3483.0,2.87108]
[1718408329722,7.66811681,3483.4,3483.0,2.87108]
[1718408330557,2.87084,3483.3,3483.0,2.87108]
[1718408330744,4.23962733,3483.3,3483.0,2.87108]
[1718408331064,2.87094,3483.2,3482.8,0.671]
[1718408331430,2.87094,3483.2,3482.6,5.88643]
[1718408331651,2.87094,3483.2,3482.6,0.671]
[1718408332124,2.8711,3483.0,3482.6,3.54241]
[1718408332558,2.99449876,3482.9,3482.6,2.87141]
[1718408332725,2.99449876,3482.9,3482.6,3.54241]
[1718408336257,0.12332876,3482.9,3482.6,3.54241]
[1718408336631,2.871,3483.1,3482.6,3.54241]
[1718408336832,0.12330543,3482.8,3482.7,2.87133]
[1718408337068,2.871,3483.1,3482.7,2.87133]
[1718408337378,5.59906641,3483.1,3482.7,2.87133]
[1718408337581,0.12330543,3483.0,3482.7,2.87133]
[1718408340284,1.50166074,3483.0,3482.7,2.87133]
[1718408340525,0.12330543,3483.0,3482.7,2.87133]
[1718408340690,1.50166074,3483.0,3482.7,2.87133]
[1718408341353,4.37274074,3483.0,3482.7,2.87133]
[1718408341540,0.90898373,3482.9,3482.7,2.87133]
[1718408342048,0.12330543,3482.8,3482.7,2.87133]
[1718408342650,1.37835531,3482.9,3482.7,2.87133]
[1718408342874,0.12330543,3482.8,3482.7,2.87133]
[1718408344060,4.74582079,3483.0,3482.7,2.87133]
[1718408344285,0.12330543,3482.8,3482.7,2.87133]
[1718408344469,3.36746548,3483.0,3482.7,2.87133]
[1718408344470,4.74582079,3483.0,3482.7,2.87133]
[1718408344663,0.12330543,3482.8,3482.7,2.87133]
[1718408344868,1.87474079,3482.9,3482.7,2.87133]
[1718408345163,0.12330543,3482.8,3482.7,9.255372]
[1718408345404,0.12330543,3482.8,3482.7,15.141302]
[1718408345579,1.37835531,3483.4,3483.3,2.87084]
[1718408345783,0.12323935,3483.4,3483.3,2.87084]
[1718408346508,0.12323935,3483.4,3483.3,10.95612]
[1718408346710,0.12323935,3483.4,3483.3,12.118832]
[1718408347001,1.8748945,3483.9,3483.8,2.87042]
[1718408347326,0.12329765,3483.9,3483.8,2.87042]
[1718408347667,0.12329765,3483.9,3483.8,3.54142]
[1718408349700,1.3785989,3484.1,3483.9,2.87029]
[1718408349914,2.00330632,3484.1,3483.9,2.87029]
[1718408351374,1.3785989,3484.1,3483.9,2.87029]
[1718408352173,1.3785989,3484.2,3483.9,2.87029]
[1718408352366,2.88140336,3484.2,3483.9,2.87029]
[1718408353576,1.50280446,3484.2,3483.9,2.87029]
[1718408353772,2.88124815,3484.2,3483.9,2.87029]
[1718408354823,1.37844369,3484.2,3483.9,2.87029]
[1718408355323,5.75127815,3484.3,3483.9,2.87029]
[1718408355606,2.88124815,3484.2,3483.9,2.87029]
[1718408355799,7.18472329,3484.3,3483.9,2.87029]
[1718408359375,1.99904418,3484.4,3484.2,2.87009]
[1718408359580,5.75101815,3484.6,3484.2,2.87009]
[1718408359914,4.30321514,3484.6,3484.2,2.87009]
[1718408360784,4.30321514,3484.6,3484.3,2.87001]
[1718408362278,0.12383006,3484.5,3484.3,2.87001]
[1718408363079,0.12383006,3484.5,3484.4,2.86993]
[1718408363381,2.87977441,3485.3,3485.0,2.86941]
[1718408363607,1.43344514,3485.3,3485.0,2.86941]
[1718408367000,1.37844369,3485.7,3484.9,2.8695]
[1718408367229,6.62910976,3485.8,3485.5,2.86902]
[1718408367230,2.2604,3485.8,3485.5,2.86902]
[1718408367523,1.00036058,3485.7,3485.5,2.86902]
[1718408367723,1.00036058,3485.7,3485.3,2.86918]
[1718408373297,3.86922058,3485.7,3485.3,2.86918]
[1718408376246,2.86895,3485.6,3485.1,3.54032]
[1718408376441,2.86921,3485.3,3484.7,2.86964]
[1718408376622,2.4503,3485.4,3484.7,2.86964]
[1718408376825,3.88374514,3485.4,3484.7,2.86964]
[1718408377360,2.86944,3485.0,3484.7,2.86964]
[1718408377967,0.1248282,3484.9,3484.7,2.86964]
[1718408378243,0.1248282,3484.9,3484.8,0.671]
[1718408379754,0.1248282,3484.9,3484.5,0.671]
[1718408379755,2.8697,3484.7,3484.5,0.671]
[1718408379937,2.8697,3484.7,3484.4,2.86993]
[1718408380136,0.12474667,3484.6,3484.5,0.671]
[1718408381757,0.12474667,3484.6,3484.5,3.54085]
[1718408382125,2.86951,3485.0,3484.5,3.54085]
[1718408382330,2.86951,3485.0,3484.7,0.671]
[1718408384230,2.86951,3485.0,3484.6,2.86976]
[1718408384427,2.86951,3485.0,3484.7,2.86967]
[1718408391541,4.24765809,3485.0,3484.7,2.86967]
[1718408392368,0.12472724,3484.9,3484.7,2.86967]
[1718408394129,1.50287533,3484.9,3484.7,2.86967]
[1718408394943,0.12472724,3484.9,3484.7,2.86967]
[1718408399843,1.50287533,3484.9,3484.7,2.86967]
[1718408400604,0.12472724,3484.9,3484.7,2.86967]
[1718408401464,1.50287533,3484.9,3484.7,2.86967]
[1718408401885,0.12472724,3484.9,3484.7,2.86967]
[1718408402245,1.50287533,3484.9,3484.7,2.86967]
[1718408402753,1.50287533,3484.9,3484.4,2.4646]
[1718408402954,0.12472724,3484.9,3484.8,11.7444]
[1718408403155,2.86961,3484.8,3483.9,2.87033]
[1718408403494,2.86961,3484.8,3483.1,2.87099]
[1718408403495,2.4749,3483.9,3483.1,2.87099]
[1718408403784,2.4749,3483.9,3483.4,2.87073]
[1718408403785,1.37783429,3483.6,3483.4,2.87073]
[1718408403994,1.37783429,3483.6,3483.5,0.671]
[1718408404145,1.377875,3483.9,3483.5,3.54164]
[1718408404496,1.377875,3483.9,3483.7,0.671]
[1718408404643,1.377875,3484.1,3483.8,2.87041]
[1718408404840,1.377875,3484.2,3483.8,2.87041]
[1718408405158,4.247985,3484.2,3483.8,2.87041]
[1718408406380,2.8702,3484.1,3483.7,0.671]
[1718408406581,2.8702,3484.1,3483.6,2.87054]
[1718408407350,0.12421074,3484.0,3483.6,2.87054]
[1718408409041,0.12421074,3484.0,3483.7,0.671]
[1718408409258,0.12421074,3484.0,3483.7,3.54149]
[1718408410245,0.12421074,3484.0,3483.9,0.671]
[1718408410565,5.75021443,3484.6,3484.1,2.87017]
[1718408410566,2.86979,3484.6,3484.1,2.87017]
[1718408410759,2.86979,3484.6,3484.1,3.54117]
[1718408411784,2.86985,3484.5,3483.9,2.87027]
[1718408412087,2.87012,3484.2,3483.7,0.671]
[1718408412291,5.32383,3484.4,3483.9,2.87034]
[1718408412451,5.32383,3484.4,3483.9,3.54134]
[1718408412452,2.86993,3484.4,3483.9,3.54134]
[1718408413575,0.7117345,3484.5,3483.9,3.54134]
[1718408413576,2.87002,3484.3,3483.9,3.54134]
[1718408414550,2.87002,3484.3,3484.0,2.87025]
[1718408416131,2.87002,3484.3,3483.9,0.671]
[1718408416132,2.87012,3484.2,3483.9,0.671]
[1718408416328,2.87012,3484.2,3483.7,0.671]
[1718408416477,2.87003,3484.3,3483.4,2.3423]
[1718408416677,2.87003,3484.3,3483.6,0.671]
[1718408417386,4.30347514,3484.3,3483.6,0.671]
[1718408417721,2.8706,3483.6,3483.2,2.87091]
[1718408418726,2.87068,3483.5,3483.2,2.87091]
[1718408420588,2.87068,3483.5,3483.2,3.54191]
[1718408421190,2.87068,3483.5,3483.2,0.671]
[1718408421886,2.87068,3483.5,3483.1,2.871]
[1718408422091,2.87068,3483.5,3483.1,3.542]
[1718408422421,0.12402818,3483.4,3483.1,3.542]
[1718408424005,2.99478818,3483.4,3482.9,2.87115]
[1718408424230,2.99478818,3483.4,3482.9,3.54215]
[1718408424905,2.87089,3483.3,3482.9,3.54215]
[1718408425226,0.12376787,3483.2,3482.9,3.54215]
[1718408431542,2.87133,3482.8,3482.4,2.87151]
[1718408431746,0.18205894,3482.7,3482.4,2.87151]
[1718408431981,2.87141,3482.6,3482.1,2.87182]
[1718408432145,2.87141,3482.6,3481.9,2.3927]
[1718408432146,1.72058614,3482.6,3481.9,2.3927]
[1718408432330,2.87159,3482.4,3482.0,0.671]
[1718408432535,2.87159,3482.4,3481.9,5.26468]
[1718408432728,0.18189186,3482.3,3482.1,0.671]
[1718408433964,2.87174,3482.2,3482.1,0.671]
[1718408434167,3.05337533,3482.2,3482.1,0.671]
[1718408434547,0.18163533,3482.2,3482.1,0.671]
[1718408434788,0.18163533,3482.2,3481.7,2.87211]
[1718408434789,2.87166,3482.3,3482.0,2.8719]
[1718408435069,0.18163533,3482.2,3482.0,2.8719]
[1718408435238,2.87158,3482.4,3482.1,3.54283]
[1718408435742,0.18137491,3482.3,3482.1,3.54283]
[1718408441585,0.18137491,3482.3,3482.1,2.87183]
[1718408441758,3.05304491,3482.3,3481.9,2.87198]
[1718408441962,3.05304491,3482.3,3482.0,2.8719]
[1718408442163,3.05304491,3482.3,3482.0,3.5429]
[1718408443655,3.05304491,3482.3,3482.0,2.8719]
[1718408445560,3.05304491,3482.3,3482.0,3.5429]
[1718408447919,0.18137491,3482.3,3482.1,2.87181]
[1718408448069,2.8715,3482.5,3482.1,2.87181]
[1718408448265,0.18125827,3482.4,3482.1,2.87181]
[1718408449075,0.18125827,3482.4,3482.2,0.671]
[1718408449371,0.49645013,3482.9,3482.5,2.87142]
[1718408449680,1.37698553,3483.0,3482.2,3.417999]
[1718408449681,2.87092,3483.2,3482.8,3.54225]
[1718408450575,2.87092,3483.2,3482.8,2.87125]
[1718408450786,2.87092,3483.2,3482.4,2.87151]
[1718408450986,2.87092,3483.2,3482.6,3.54233]
[1718408450987,2.871,3483.1,3482.6,3.54233]
[1718408451522,2.871,3483.1,3482.7,2.87133]
[1718408451739,3.34544357,3483.1,3482.7,2.87133]
[1718408452185,3.05242768,3483.0,3482.7,2.87133]
[1718408452390,3.05242768,3483.0,3482.6,0.671]
[1718408452391,2.87127,3482.8,3482.1,2.87182]
[1718408452585,2.87127,3482.8,3482.3,2.87166]
[1718408452787,2.87133,3482.7,3482.4,2.87157]
[1718408452991,3.05267768,3482.7,3482.4,3.54257]
[1718408454226,0.18134768,3482.7,3482.4,3.54257]
[1718408454441,0.18134768,3482.7,3482.4,5.82737]
[1718408454732,4.99549121,3483.2,3482.8,2.87125]
[1718408454888,4.24549121,3483.2,3482.8,2.87125]
[1718408455337,4.24585062,3483.2,3482.8,2.87125]
[1718408456029,1.37489062,3483.2,3482.8,3.54225]
[1718408456331,1.37489062,3483.2,3482.0,2.8719]
[1718408456332,1.37489062,3483.5,3483.0,2.9558]
[1718408456541,4.24540062,3483.7,3483.2,2.87092]
[1718408456753,5.67884576,3483.7,3483.2,2.87092]
[1718408457033,1.37489062,3483.6,3483.2,2.87092]
[1718408457652,7.37695656,3483.7,3483.3,2.87083]
[1718408457939,1.37489062,3483.6,3483.3,2.87083]
[1718408458153,7.37695656,3483.7,3483.3,2.87083]
[1718408458655,1.8712881,3483.7,3483.2,3.54191]
[1718408458809,2.87042,3483.9,3483.2,3.54191]
[1718408458810,4.24531062,3483.9,3483.4,0.671]
[1718408459012,4.24531062,3483.9,3483.5,2.87065]